[Event "Lithuanian Chess League 2021"]
[Site "Various cities"]
[Date "2021.05.15"]
[Round "6.25"]
[White "Liandzbergas, Mykolas"]
[Black "Bandza, Rokas"]
[Result "0-1"]
[WhiteElo "1405"]
[BlackElo "1817"]
[PlyCount "76"]
[TimeControl "90/40+30:0"]
[WhiteClock "1:21:56"]
[BlackClock "0:21:15"]

1. e4 {[%emt 1:29:23]} e6 {[%emt 0:00:46]} 2. d3 {[%emt 0:00:14]} d5 {[%emt 0:
01:37]} 3. Nd2 {[%emt 0:00:23]} c5 {[%emt 0:00:39]} 4. Ngf3 {[%emt 0:00:11]}
Nf6 {[%emt 0:02:26]} 5. g3 {[%emt 0:00:13]} Nc6 {[%emt 0:00:09]} 6. Bg2 {[%emt
0:00:08]} g6 {[%emt 0:00:23]} 7. O-O {[%emt 0:00:13]} Bg7 {[%emt 0:00:08]} 8.
Re1 {[%emt 0:00:09]} O-O {[%emt 0:00:15]} 9. e5 {[%emt 0:00:08]} Nd7 {[%emt 0:
00:20]} 10. Nb3 {[%emt 0:01:17]} c4 {[%emt 0:13:58]} 11. Nbd2 {[%emt 0:02:20]}
cxd3 {[%emt 0:00:39]} 12. cxd3 {[%emt 0:00:13]} Ndxe5 {[%emt 0:00:55]} 13. d4 {
[%emt 0:01:52]} Nd3 {[%emt 0:08:26]} 14. Re2 {[%emt 0:02:25]} Nxc1 {[%emt 0:01:
26]} 15. Rxc1 {[%emt 0:00:13]} Nxd4 {[%emt 0:01:06]} 16. Nxd4 {[%emt 0:00:11]}
Bxd4 {[%emt 0:00:07]} 17. Nf3 {[%emt 0:00:06]} Bg7 {[%emt 0:00:41]} 18. Ne5 {
[%emt 0:06:04]} Qd6 {[%emt 0:13:43]} 19. Qe1 {[%emt 0:00:44]} Bd7 {[%emt 0:00:
51]} 20. Nxd7 {[%emt 0:02:52]} Qxd7 {[%emt 0:00:05]} 21. Rec2 {[%emt 0:00:36]}
Rfc8 {[%emt 0:05:35]} 22. b3 {[%emt 0:00:39]} Rxc2 {[%emt 0:01:41]} 23. Rxc2 {
[%emt 0:00:05]} Rc8 {[%emt 0:02:06]} 24. Qc1 {[%emt 0:00:07]} Rxc2 {[%emt 0:00:
41]} 25. Qxc2 {[%emt 0:00:07]} d4 {[%emt 0:01:47]} 26. Qd3 {[%emt 0:00:21]} b6
{[%emt 0:00:52]} 27. f4 {[%emt 0:00:25]} Qc7 {[%emt 0:01:25]} 28. a4 {[%emt 0:
00:45]} Qc1+ {[%emt 0:01:00]} 29. Bf1 {[%emt 0:00:34]} Bf8 {[%emt 0:02:27]} 30.
Qc4 {[%emt 0:00:55]} Qe3+ {[%emt 0:01:13]} 31. Kg2 {[%emt 0:00:12]} Qe4+ {
[%emt 0:07:17]} 32. Kg1 {[%emt 0:00:06]} Bc5 {[%emt 0:01:44]} 33. Qd3 {[%emt 0:
00:13]} Qe1 {[%emt 0:00:53]} 34. Kg2 {[%emt 0:00:34]} Qa1 {[%emt 0:09:07]} 35.
Be2 {[%emt 0:00:53]} Qb2 {[%emt 0:00:21]} 36. Kg1 {[%emt 0:00:30]} Qxe2 {[%emt
0:01:16]} 37. Qxe2 {[%emt 0:00:18]} d3+ {[%emt 0:00:07]} 38. Kf1 {[%emt 0:00:
08]} dxe2+ {[%emt 0:00:08]} 0-1